bitfinex/quotes_SOLUSD_20251106
["timestamp","ask_amount","ask_price","bid_price","bid_amount"]
[1762452254749,20.592,157.29,157.25,5.72506819]
[1762452254946,20.592,157.29,157.25,0.67]
[1762452255150,20.592,157.29,157.26,0.67]
[1762452255367,20.592,157.29,157.22,5.0550682]
[1762452255368,11.41315567,157.28,157.22,5.0550682]
[1762452255580,5.05506819,157.27,157.23,0.67]
[1762452255890,29.75330619,157.28,157.23,0.67]
[1762452256066,22.25330619,157.28,157.23,0.67]
[1762452256476,5.05506819,157.26,157.23,0.67]
[1762452256792,5.05506819,157.24,157.22,1e-08]
[1762452257000,5.05506819,157.24,157.22,0.67000001]
[1762452257505,11.41517758,157.23,157.22,1e-08]
[1762452257972,20.592,157.26,157.22,5.7250682]
[1762452258374,20.592,157.26,157.23,0.67]
[1762452258989,25.64706819,157.26,157.23,0.67]
[1762452259171,32.00610885,157.26,157.23,0.67]
[1762452259484,6.35858016,157.27,157.23,5.72506819]
[1762452259692,11.41364835,157.27,157.23,0.67]
[1762452259877,11.41364835,157.27,157.24,0.67]
[1762452260393,5.05506819,157.26,157.24,0.67]
[1762452261273,27.30987776,157.27,157.24,0.67]
[1762452261470,34.45009028,157.28,157.24,12.08472021]
[1762452261709,34.45009028,157.28,157.24,0.67]
[1762452261993,32.00515847,157.28,157.25,0.67]
[1762452262196,5.05506819,157.27,157.25,0.67]
[1762452262396,47.90037718,157.28,157.25,0.67]
[1762452262601,42.84530899,157.28,157.25,0.67]
[1762452262784,20.592,157.28,157.25,0.67]
[1762452263086,32.0052794,157.28,157.25,0.67]
[1762452263296,47.90049811,157.28,157.25,0.67]
[1762452263481,26.95021121,157.28,157.25,0.67]
[1762452263678,32.0052794,157.28,157.25,0.67]
[1762452264070,26.95021121,157.28,157.25,0.67]
[1762452264692,20.592,157.28,157.25,0.67]
[1762452265066,26.95023483,157.28,157.25,0.67]
[1762452265266,102.9,157.26,157.25,0.67]
[1762452266279,102.9,157.26,157.23,0.7]
[1762452266594,105.0554347,157.26,157.23,0.7]
[1762452267399,6.35930047,157.25,157.23,0.7]
[1762452267911,2.1554347,157.24,157.22,1e-08]
[1762452268075,2.1554347,157.23,157.22,1e-08]
[1762452268282,2.8454347,157.23,157.22,1e-08]
[1762452268477,23.4374347,157.23,157.22,1e-08]
[1762452269220,34.02127606,157.23,157.22,1e-08]
[1762452269510,34.02127606,157.23,157.13,0.2]
[1762452269511,9.78882769,157.18,157.13,0.2]
[1762452269715,9.78882769,157.18,157.1,0.2]
[1762452269716,2.1554347,157.14,157.1,0.2]
[1762452270019,9.78882769,157.1,157.09,0.2]
[1762452270173,30.38082769,157.08,157.07,0.2]
[1762452270521,37.88082769,157.08,157.07,0.2]
[1762452270727,17.28882769,157.1,157.07,0.9]
[1762452271022,7.5,157.1,157.07,0.9]
[1762452271332,2.1554347,157.1,157.07,0.9]
[1762452271484,2.1554347,157.09,157.07,0.2]
[1762452272284,5.06279121,157.09,157.07,0.2]
[1762452273311,42.60557458,157.08,157.07,0.2]
[1762452273517,26.95818283,157.08,157.07,0.2]
[1762452273820,20.592,157.08,157.07,0.2]
[1762452274348,32.02097404,157.08,157.07,0.2]
[1762452274518,25.65479121,157.08,157.07,0.2]
[1762452274811,32.02097404,157.08,157.07,0.2]
[1762452275923,42.49980173,157.08,157.07,0.2]
[1762452277614,41.80980173,157.08,157.07,0.2]
[1762452277984,36.74701052,157.08,157.07,0.2]
[1762452278190,32.02097404,157.08,157.07,0.2]
[1762452278393,36.74701052,157.08,157.07,0.2]
[1762452278634,36.74701052,157.08,157.06,0.2]
[1762452278635,9.78882769,157.07,157.06,0.2]
[1762452278801,14.8516189,157.07,157.06,0.2]
[1762452278998,15.5716189,157.07,157.06,0.2]
[1762452279206,14.8516189,157.07,157.06,0.2]
[1762452279494,21.93820704,157.07,157.06,0.2]
[1762452281422,21.21820704,157.07,157.06,0.2]
[1762452282204,16.15541583,157.07,157.06,0.2]
[1762452282412,21.93820704,157.07,157.06,0.2]
[1762452282613,20.592,157.04,157.0,0.68]
[1762452282824,5.06279121,157.02,157.0,0.68]
[1762452283622,11.43153355,157.02,157.0,0.68]
[1762452283829,6.36874234,157.02,157.0,0.68]
[1762452285218,7.52,157.03,157.0,0.68]
[1762452285407,13.88823296,157.03,157.0,5.74279121]
[1762452285608,13.88823296,157.03,157.01,0.68]
[1762452287837,6.36823296,157.03,157.01,0.68]
[1762452288027,32.02267789,157.04,157.01,0.68]
[1762452290638,5.06279121,157.03,157.01,0.68]
[1762452291143,9.78882769,157.03,156.98,0.68]
[1762452291353,5.06279121,157.03,156.99,0.68]
[1762452291653,9.78882769,157.02,156.97,0.2]
[1762452291844,7.5,157.01,156.97,0.88]
[1762452292342,7.5,157.01,156.98,0.68]
[1762452293531,13.86906793,157.01,156.98,0.68]
[1762452293933,7.5,157.01,156.98,0.68]
[1762452294134,13.86904979,157.01,156.98,0.68]
[1762452294456,18.931841,157.01,156.98,0.68]
[1762452294956,5.06279121,157.0,156.98,0.68]
[1762452295341,18.931841,157.01,156.98,0.68]
[1762452296727,34.8543937,157.01,156.98,0.68]
[1762452297641,29.79160249,157.01,156.99,0.7]
[1762452297841,5.06279121,157.0,156.99,0.7]
[1762452298055,5.06279121,157.0,156.98,0.7]
[1762452298355,13.86927783,157.01,156.98,0.7]
[1762452298653,13.86927783,157.01,156.99,0.7]
[1762452299552,7.5,157.01,156.99,0.7]
[1762452299930,20.592,157.04,156.97,0.2]
[1762452300131,20.592,157.0,156.97,0.9]
[1762452300354,7.5,156.99,156.97,0.2]
[1762452300650,5.06279121,156.98,156.97,0.2]
[1762452300855,7.5,156.99,156.97,0.9]
[1762452301040,28.092,157.01,156.97,0.9]
[1762452301356,5.06279121,157.0,156.98,0.7]
[1762452301758,11.43259969,157.0,156.98,0.7]
[1762452301963,7.5,157.01,156.98,0.7]
[1762452302145,7.5,157.04,157.0,5.06279121]
[1762452302329,7.5,157.07,156.99,50.0]
[1762452302526,5.06279121,157.05,157.0,0.7]
[1762452302755,25.65479121,157.03,157.0,0.7]
[1762452302959,5.06279121,157.01,156.98,0.7]
[1762452303137,5.06279121,157.0,156.98,0.7]
[1762452303459,37.90082769,157.03,156.98,0.7]
[1762452303643,5.06279121,157.01,156.98,0.7]
[1762452303844,11.43204821,157.01,156.98,0.7]
[1762452304648,6.369257,157.01,156.98,0.7]
[1762452305049,28.112,157.03,156.98,5.76279121]
[1762452305243,33.17479121,157.03,156.98,5.76279121]
[1762452305451,33.17479121,157.03,156.99,0.7]
[1762452305742,39.54313264,157.03,156.99,0.7]
[1762452306143,5.06279121,157.01,156.97,0.9]
[1762452306349,5.06279121,157.0,156.97,0.9]
[1762452306543,5.06279121,157.01,156.97,0.2]
[1762452306757,5.06279121,157.01,156.98,0.7]
[1762452307165,5.06279121,157.01,156.97,0.2]
[1762452307339,5.06279121,157.01,156.97,0.9]
[1762452307540,0.69,157.02,156.97,0.9]
[1762452307541,5.06279121,156.99,156.97,0.2]
[1762452307747,9.78882769,157.02,156.97,0.9]
[1762452307973,60.87969386,157.03,156.97,0.9]
[1762452307974,6.36902108,157.01,156.97,0.9]
[1762452308269,11.43181229,157.01,156.98,0.7]
[1762452308648,5.06279121,157.0,156.97,0.2]
[1762452309070,5.06279121,156.98,156.97,0.2]
[1762452310072,11.43302945,156.98,156.97,0.2]
[1762452310571,46.20588297,156.98,156.97,1e-08]
[1762452310874,33.58242023,156.98,156.97,1e-08]
[1762452311260,20.592,156.95,156.94,1e-08]
[1762452311469,46.66579693,156.95,156.94,1e-08]
[1762452311664,45.86936495,156.95,156.94,1e-08]
[1762452311973,46.55936495,156.95,156.94,1e-08]
[1762452312162,52.93082082,156.95,156.94,1e-08]
[1762452312849,52.24082082,156.95,156.94,1e-08]
[1762452313057,52.93082082,156.95,156.94,1e-08]
[1762452313266,53.7272528,156.95,156.94,1e-08]
[1762452313769,52.93082082,156.95,156.94,1e-08]
[1762452314554,45.41082082,156.95,156.94,1e-08]
[1762452315574,44.27228356,156.95,156.94,1e-08]
[1762452315778,52.24082082,156.95,156.94,1e-08]
[1762452316076,34.93171573,156.96,156.94,0.70000001]
[1762452316278,17.75736495,156.95,156.94,1e-08]
[1762452316456,31.07082769,156.95,156.94,1e-08]
[1762452316777,30.38082769,156.95,156.94,1e-08]
[1762452316954,38.34936495,156.95,156.94,1e-08]
[1762452317160,39.03936495,156.95,156.94,1e-08]
[1762452318057,45.41082082,156.95,156.94,1e-08]
[1762452318455,44.72082082,156.95,156.94,1e-08]
[1762452318659,45.41082082,156.95,156.94,1e-08]
[1762452319161,16.85028356,156.95,156.94,1e-08]
[1762452319353,24.81882082,156.95,156.94,1e-08]
[1762452319581,24.81882082,156.95,156.85,0.8]
[1762452319582,20.592,156.9,156.85,0.1]
[1762452319770,7.96853726,156.86,156.85,0.1]
[1762452319976,15.48853726,156.86,156.85,0.1]
[1762452320156,15.48853726,156.87,156.85,0.8]
[1762452320478,21.8633258,156.87,156.85,0.8]
[1762452320656,9.78882769,156.91,156.85,7.17547426]
[1762452320857,7.96853726,156.9,156.85,8.76853726]
[1762452321058,15.48853726,156.91,156.86,0.7]
[1762452321565,7.52,156.91,156.88,7.96853726]
[1762452321765,7.52,156.91,156.87,7.96853726]
[1762452321974,7.52,156.91,156.86,0.7]
[1762452322281,7.52,156.91,156.87,7.96853726]
[1762452322664,7.52,156.91,156.88,0.71]
[1762452322665,15.48853726,156.91,156.88,0.71]
[1762452323364,7.96853726,156.91,156.88,0.71]
[1762452323571,28.112,156.92,156.88,0.71]
[1762452323771,28.56053726,156.92,156.88,0.71]
[1762452323973,42.45323235,156.92,156.88,0.71]
[1762452324181,7.96853726,156.91,156.88,0.71]
[1762452324888,0.66,156.99,156.89,7.96853726]
[1762452325192,121.98,157.07,156.91,7.96853726]
[1762452325193,28.56053726,156.96,156.91,7.96853726]
[1762452325588,28.56053726,156.96,156.92,0.71]
[1762452325900,7.96853726,156.95,156.92,0.71]
[1762452326193,14.34080515,156.93,156.9,0.71]
[1762452326398,14.34080515,156.93,156.85,0.1]
[1762452326399,7.96853726,156.91,156.85,0.1]
[1762452326564,7.96853726,156.89,156.85,0.81]
[1762452326759,9.78882769,156.91,156.85,7.18546687]
[1762452326964,15.48853726,156.92,156.87,7.96853726]
[1762452327491,15.48853726,156.92,156.88,0.71]
[1762452328073,7.96853726,156.94,156.89,7.96853726]
[1762452328264,7.96853726,156.96,156.91,7.96853726]
[1762452328607,15.48853726,156.96,156.92,0.71]
[1762452328901,7.96853726,156.95,156.92,0.71]
[1762452329472,36.08053726,156.96,156.92,0.71]
[1762452329687,36.08053726,156.96,156.92,8.67853726]
[1762452329688,34.48335918,156.96,156.92,8.67853726]
[1762452329991,13.89135918,156.96,156.92,8.67853726]
[1762452330296,7.52,156.96,156.93,8.67853726]
[1762452330501,21.85963377,156.96,156.93,0.71]
[1762452330719,7.96853726,156.94,156.89,0.71]
[1762452330929,7.96853726,156.93,156.89,0.71]
[1762452331399,30.61510262,156.96,156.89,8.67853726]
[1762452331400,7.96853726,156.94,156.89,8.67853726]
[1762452332028,6.37226789,156.93,156.89,8.67853726]
[1762452332317,7.96853726,156.92,156.89,0.71]
[1762452332622,15.48853726,156.92,156.89,0.71]
[1762452333001,15.48853726,156.92,156.87,7.96853726]
[1762452333002,7.96853726,156.91,156.87,0.71]
[1762452333208,7.96853726,156.91,156.86,14.34357409]
[1762452333522,7.96853726,156.89,156.85,0.1]
[1762452333722,7.96853726,156.89,156.86,0.71]
[1762452334111,6.37337458,156.91,156.87,7.96853726]
[1762452334508,6.37337458,156.91,156.88,0.71]
[1762452334714,14.34191184,156.91,156.88,0.71]
[1762452335124,6.37337458,156.91,156.88,0.71]
[1762452336027,28.112,156.92,156.88,15.05278084]
[1762452336229,20.592,156.92,156.89,7.96853726]
[1762452336433,7.52,156.93,156.9,0.71]
[1762452336724,0.66,156.99,156.92,7.96853726]
[1762452336935,15.48853726,156.97,156.92,7.96853726]
[1762452337107,7.52,156.97,156.93,8.64853726]
[1762452337511,0.72,157.03,156.95,7.96853726]
[1762452337715,7.96853726,157.01,156.96,7.96853726]
[1762452338021,7.96853726,157.0,156.95,8.64853726]
[1762452338221,7.96853726,156.99,156.95,0.68]
[1762452338422,7.96853726,156.98,156.92,6.37255108]
[1762452338734,7.96853726,156.98,156.93,8.64853726]
[1762452339033,123.492,157.01,156.94,0.68]
[1762452339237,7.96853726,157.0,156.95,7.96853726]
[1762452339615,14.33833032,157.0,156.96,0.68]
[1762452340341,16.20853726,157.07,156.99,7.96853726]
[1762452340526,17.30882769,157.07,157.01,7.96853726]
[1762452340834,17.30882769,157.07,157.0,0.68]
[1762452340835,28.56053726,157.06,157.0,8.64853726]
[1762452341035,7.96853726,157.06,157.0,8.64853726]
[1762452341238,28.56053726,157.06,157.0,7.96853726]
[1762452341419,7.52,157.07,157.02,7.96853726]
[1762452341731,7.52,157.07,157.03,8.64853726]
[1762452342039,7.52,157.07,157.04,7.96853726]
[1762452342237,0.2,157.1,157.06,7.96853726]
[1762452342620,14.5339597,157.1,157.06,0.68]
[1762452342937,8.16853726,157.1,157.06,0.68]
[1762452343139,0.2,157.1,157.06,0.68]
[1762452343329,8.16853726,157.1,157.06,0.68]
[1762452343532,14.53398994,157.1,157.06,0.68]
[1762452344433,7.96853726,157.07,157.03,0.68]
[1762452344611,7.96853726,157.08,157.03,8.64853726]
[1762452344811,7.96853726,157.07,157.03,0.68]
[1762452345133,7.96853726,157.06,157.01,7.96853726]
[1762452345324,28.56053726,157.06,157.01,8.64853726]
[1762452345636,7.96853726,157.04,156.99,7.96853726]
[1762452345842,7.96853726,157.04,156.99,0.68]
[1762452346044,0.2,157.1,157.03,7.96853726]
[1762452346240,0.2,157.1,157.05,7.96853726]
[1762452346241,20.592,157.09,157.05,7.96853726]
[1762452346440,28.56053726,157.09,157.04,7.96853726]
[1762452346646,20.592,157.09,157.05,7.96853726]
[1762452346946,20.592,157.09,157.05,8.64853726]
[1762452347144,109.26646897,157.08,157.04,7.96853726]
[1762452347665,7.96853726,157.05,156.97,50.0]
[1762452347822,7.96853726,157.02,156.96,50.0]
[1762452348021,7.96853726,157.02,156.97,8.64853726]
[1762452348240,110.42,157.04,156.97,0.68]
[1762452348241,110.86853726,157.01,156.97,0.68]
[1762452348442,110.86853726,157.01,156.96,8.64853726]
[1762452348627,110.86853726,157.01,156.97,0.68]
[1762452349045,110.86853726,157.01,156.97,8.64853726]
[1762452349046,102.9,157.01,156.97,8.64853726]
[1762452349254,102.9,157.01,156.97,7.0504551]
[1762452349425,102.9,157.01,157.0,7.96853726]
[1762452349626,102.9,157.01,157.0,0.68]
[1762452349823,102.9,157.01,157.0,8.64853726]
[1762452350824,20.592,157.05,157.0,58.64853726]
[1762452351146,7.96853726,157.08,157.01,0.68]
[1762452351340,7.96853726,157.05,157.0,7.96853726]
[1762452351728,7.96853726,157.04,157.0,0.68]
[1762452351934,7.96853726,157.05,157.0,8.64853726]
[1762452352241,14.33632762,157.05,157.0,8.64853726]
[1762452352451,7.96853726,157.04,156.99,7.96853726]
[1762452352635,7.96853726,157.04,157.0,0.67]
[1762452352833,7.96853726,157.04,157.0,7.03940614]
[1762452353345,117.23632762,157.05,157.0,15.0079434]
[1762452353534,7.96853726,157.04,156.99,14.33831593]
[1762452353734,7.96853726,157.04,157.01,0.67]
[1762452353949,133.15482491,157.05,157.01,0.67]
[1762452354245,109.26779036,157.05,157.01,8.63853726]
[1762452354448,117.23632762,157.05,156.96,50.0]
[1762452354751,7.96853726,157.03,156.98,7.96853726]
[1762452355048,102.9,157.02,156.99,0.67]
[1762452355345,110.86853726,157.02,156.96,15.00947609]
[1762452355552,7.96853726,157.0,156.95,7.96853726]
[1762452355747,7.96853726,157.0,156.95,8.63853726]
[1762452356062,7.96853726,157.0,156.96,0.67]
[1762452356237,6.36983247,156.99,156.96,0.67]
[1762452357538,6.36983247,156.99,156.93,6.37223881]
[1762452357539,8.64853726,156.98,156.93,6.37223881]
[1762452357734,7.96853726,156.98,156.93,7.04223881]
[1762452358058,7.96853726,156.98,156.94,0.67]
[1762452358653,14.33836973,156.99,156.94,0.67]
[1762452358832,14.33807536,157.0,156.94,15.01029218]
[1762452359157,102.9,156.99,156.95,7.96853726]
[1762452359546,102.9,156.99,156.95,8.63853726]
[1762452360252,103.58,156.98,156.92,50.0]
[1762452360433,111.54853726,156.98,156.93,7.96853726]
[1762452360628,102.9,156.97,156.94,7.96853726]
[1762452360836,109.27075239,156.97,156.93,7.96853726]
[1762452361036,109.27075239,156.97,156.93,8.63853726]
[1762452361441,109.95075239,156.97,156.92,7.96853726]
[1762452361637,7.96853726,156.95,156.89,0.67]
[1762452361840,7.96853726,156.92,156.86,0.67]
[1762452362072,7.52,156.92,156.87,8.63853726]
[1762452362235,8.64853726,156.91,156.86,7.96853726]
[1762452362442,8.64853726,156.91,156.85,0.77]
[1762452362443,7.96853726,156.9,156.85,0.77]
[1762452362777,7.96853726,156.9,156.85,15.11404779]
[1762452362941,14.34202355,156.9,156.85,8.73853726]
[1762452363136,8.64853726,156.89,156.85,0.1]
[1762452363577,8.64853726,156.88,156.85,0.1]
[1762452363879,7.96853726,156.86,156.85,0.1]
[1762452364036,0.68,156.87,156.85,0.1]
[1762452364239,7.52,156.88,156.85,0.77]
[1762452364540,124.172,156.91,156.86,7.96853726]
[1762452364749,7.52,156.9,156.87,8.63853726]
[1762452364946,7.52,156.9,156.87,0.67]
[1762452365167,7.52,156.9,156.85,0.1]
[1762452365168,8.64853726,156.89,156.85,0.1]
[1762452365350,0.68,156.89,156.85,0.1]
[1762452365547,6.37357214,156.9,156.85,0.1]
[1762452365548,7.96853726,156.88,156.85,0.1]
[1762452365878,7.96853726,156.86,156.85,0.1]
[1762452366243,8.64853726,156.86,156.85,0.1]
[1762452366443,16.18853726,156.86,156.85,0.1]
[1762452366868,7.54,156.86,156.85,0.1]
[1762452367243,15.50853726,156.86,156.85,0.1]
[1762452367449,22.56364882,156.86,156.85,0.1]
[1762452367659,32.35247651,156.86,156.85,0.1]
[1762452369557,23.70393925,156.86,156.85,0.1]
[1762452369749,0.68,156.93,156.85,7.14548799]
[1762452369950,7.96853726,156.92,156.87,7.96853726]
[1762452370161,7.96853726,156.91,156.86,8.63853726]
[1762452370353,8.64853726,156.92,156.86,8.63853726]
[1762452370768,18.43736495,156.92,156.86,8.63853726]
[1762452371068,7.96853726,156.9,156.86,0.67]
[1762452371368,14.34197995,156.91,156.86,8.63853726]
[1762452371756,15.02197995,156.91,156.86,8.63853726]
[1762452372087,28.56053726,156.93,156.88,7.96853726]
[1762452372372,23.70078981,156.94,156.9,5.07309029]
[1762452372668,33.88509029,156.95,156.89,5.07309029]
[1762452372844,33.88509029,156.95,156.9,5.07309029]
[1762452373045,14.86191798,156.94,156.88,0.67]
[1762452373284,11.44540719,156.93,156.88,12.11726306]
[1762452373573,11.44540719,156.93,156.88,0.67]
[1762452373763,12.12540719,156.93,156.88,0.67]
[1762452374571,19.66540719,156.93,156.88,0.67]
[1762452374770,7.54,156.93,156.9,5.07309029]
[1762452374970,20.592,156.95,156.91,5.07309029]
[1762452375160,9.78882769,156.97,156.92,11.44546815]
[1762452375373,5.07309029,156.93,156.88,5.07309029]
[1762452375572,9.78882769,156.94,156.85,5.17309029]
[1762452375573,5.07309029,156.9,156.85,5.17309029]
[1762452375746,5.07309029,156.9,156.85,5.84309029]
[1762452375951,9.78882769,156.92,156.86,0.67]
[1762452376168,9.78882769,156.92,156.86,5.74309029]
[1762452376478,5.07309029,156.92,156.87,5.74309029]
[1762452376663,5.07309029,156.93,156.88,5.07309029]
[1762452376978,5.07309029,156.93,156.86,0.67]
[1762452376979,5.07309029,156.91,156.86,0.67]
[1762452377172,6.37348629,156.9,156.86,0.67]
[1762452377377,5.07309029,156.91,156.86,12.11810242]
[1762452377565,18.9857888,156.92,156.87,5.07309029]
[1762452377766,5.07309029,156.91,156.86,5.74309029]
[1762452378067,18.9857888,156.92,156.86,12.11816632]
[1762452378262,18.9857888,156.92,156.86,7.04507603]
[1762452378466,5.07309029,156.9,156.85,5.17309029]
[1762452378667,8.22,156.92,156.87,5.07309029]
[1762452378851,0.79643198,156.95,156.87,5.07309029]
[1762452378852,20.592,156.95,156.9,5.07309029]
[1762452379178,13.29309029,156.96,156.91,5.07309029]
[1762452379378,19.66423257,156.96,156.91,5.07309029]
[1762452379583,7.54,156.96,156.93,5.07309029]
[1762452379958,7.54,156.96,156.92,5.74309029]
[1762452380357,5.07309029,156.94,156.89,5.07309029]
[1762452380669,9.78882769,156.95,156.91,5.07309029]
[1762452380873,13.91112801,156.96,156.92,5.07309029]
[1762452381073,5.07309029,156.95,156.9,5.07309029]
[1762452381278,11.44495214,156.94,156.89,0.67]
[1762452381504,12.12495214,156.94,156.87,50.67]
[1762452381663,5.07309029,156.91,156.85,6.47551419]
[1762452381865,5.07309029,156.91,156.85,12.21860448]
[1762452382582,13.29309029,156.92,156.86,5.07309029]
[1762452382790,102.9,156.93,156.88,5.07309029]
[1762452382967,35.45391798,156.97,156.91,5.07309029]
[1762452383164,5.07309029,156.96,156.91,5.07309029]
[1762452383477,5.07309029,156.95,156.9,5.07309029]
[1762452383663,5.75309029,156.95,156.9,5.07309029]
[1762452383863,5.75309029,156.95,156.87,50.0]
[1762452383864,5.75309029,156.95,156.89,6.37381763]
[1762452384071,5.75309029,156.95,156.9,5.73309029]
[1762452384291,0.68,156.95,156.91,5.07309029]
[1762452384581,5.07309029,156.93,156.87,50.0]
[1762452384761,5.75309029,156.94,156.89,5.07309029]
[1762452385173,14.86191798,156.95,156.9,5.73309029]
[1762452385379,21.23342272,156.95,156.9,12.10654772]
[1762452385562,5.75309029,156.94,156.89,5.07309029]
[1762452385761,5.07309029,156.93,156.88,5.07309029]
[1762452386189,5.07309029,156.94,156.89,5.73309029]
[1762452386781,5.75309029,156.94,156.89,5.73309029]
[1762452386963,0.68,156.94,156.9,5.07309029]
[1762452387162,5.07309029,156.94,156.89,5.73309029]
[1762452387366,30.38082769,156.91,156.85,0.1]
[1762452387558,5.07309029,156.86,156.85,0.1]
[1762452387762,13.29309029,156.86,156.85,0.1]
[1762452388073,7.54,156.86,156.85,0.1]
[1762452388379,13.29309029,156.86,156.85,0.1]
[1762452388580,23.08191798,156.86,156.85,0.1]
[1762452388897,18.00882769,156.86,156.85,0.1]
[1762452389077,7.54,156.86,156.85,0.1]
[1762452389281,19.66820185,156.86,156.85,0.1]
[1762452389480,29.45702954,156.86,156.85,0.1]
[1762452389867,19.66820185,156.86,156.85,0.1]
[1762452390067,29.45702954,156.86,156.85,0.1]
[1762452390678,24.38393925,156.86,156.85,0.1]
[1762452390888,29.45702954,156.86,156.85,0.1]
[1762452391397,30.25391848,156.86,156.85,0.1]
[1762452391596,25.18082819,156.86,156.85,0.1]
[1762452392194,25.18082819,156.86,156.85,1e-08]
[1762452392585,30.25391848,156.86,156.85,1e-08]
[1762452393395,20.46509079,156.86,156.85,1e-08]
[1762452393584,9.78882769,156.82,156.78,0.1]
[1762452393778,102.89999999,156.81,156.78,0.1]
[1762452393981,102.89999999,156.81,156.79,0.66]
[1762452394187,102.89999999,156.81,156.79,5.73309029]
[1762452394518,102.89999999,156.81,156.79,0.66]
[1762452394799,20.592,156.85,156.8,5.07309029]
[1762452394970,7.54,156.84,156.8,5.07309029]
[1762452395175,9.78882769,156.83,156.78,0.76]
[1762452395398,11.44982795,156.82,156.78,0.76]
[1762452395770,6.37673766,156.82,156.78,0.76]
[1762452395982,9.78882769,156.83,156.78,12.21142654]
[1762452396191,9.78882769,156.83,156.79,5.73309029]
[1762452396393,17.32882769,156.83,156.79,5.73309029]
[1762452396593,22.40191798,156.83,156.79,0.66]
[1762452396899,28.7783508,156.83,156.79,0.66]
[1762452397073,7.54,156.83,156.79,5.73309029]
[1762452397272,7.54,156.83,156.8,5.78309029]
[1762452397488,26.96794909,156.84,156.8,5.78309029]
[1762452397686,20.592,156.84,156.8,12.16051748]
[1762452397872,7.54,156.85,156.81,0.71]
[1762452398078,14.86191798,156.84,156.79,5.07309029]
[1762452398278,14.86191798,156.84,156.78,7.1882437]
[1762452398482,14.86191798,156.84,156.78,0.81]
[1762452398690,14.86191798,156.84,156.79,5.07309029]
[1762452398893,14.86191798,156.84,156.79,5.78309029]
[1762452398894,15.56191798,156.84,156.79,5.78309029]
[1762452399076,14.86191798,156.84,156.79,5.07309029]
[1762452399277,7.54,156.84,156.8,5.78309029]
[1762452399796,7.54,156.84,156.81,5.07309029]
[1762452399982,7.54,156.84,156.82,5.07309029]
[1762452400183,102.89999999,156.83,156.82,0.71]
[1762452400383,9.78882769,156.87,156.82,5.07309029]
[1762452400588,12.61309029,156.89,156.83,0.71]
[1762452401001,7.54,156.89,156.86,5.07309029]
[1762452401199,14.61280264,156.92,156.87,5.78309029]
[1762452401488,7.54,156.92,156.89,5.07309029]
[1762452401881,7.54,156.92,156.89,5.78309029]
[1762452402080,7.54,156.92,156.89,11.44697814]
[1762452402423,9.78882769,156.93,156.83,50.71]
[1762452402576,30.38082769,156.9,156.82,5.07309029]
[1762452402776,5.07309029,156.88,156.84,0.71]
[1762452403003,5.07309029,156.89,156.84,0.71]
[1762452403213,9.78882769,156.88,156.81,5.78309029]
[1762452403417,5.07309029,156.87,156.82,5.78309029]
[1762452403709,11.4486083,156.85,156.81,0.71]
[1762452404612,6.37551801,156.85,156.81,5.78309029]
[1762452405116,12.1486083,156.85,156.8,5.07309029]
[1762452405327,12.1486083,156.85,156.8,0.71]
[1762452405328,14.86191798,156.84,156.8,0.71]
[1762452405622,14.86191798,156.84,156.78,0.1]
[1762452405623,5.07309029,156.81,156.78,0.1]
[1762452405845,11.45011645,156.82,156.78,0.1]
[1762452406415,28.132,156.84,156.79,5.78309029]
[1762452406838,28.132,156.84,156.8,0.71]
[1762452407142,39.58106386,156.84,156.78,12.2614477]
[1762452407343,28.132,156.84,156.79,5.78309029]
[1762452407715,39.58111845,156.84,156.79,5.07309029]
[1762452407923,40.28111845,156.84,156.79,5.78309029]
[1762452408253,10.48882769,156.83,156.78,0.1]
[1762452408754,10.48882769,156.83,156.78,0.81]
[1762452408951,34.50802816,156.84,156.8,5.07309029]
[1762452409131,26.96802816,156.84,156.8,5.07309029]